bitfinex-derivatives/quotes_SOLF0:USTF0_20250426
["timestamp","ask_amount","ask_price","bid_price","bid_amount"]
[1745699701456,32.99865613,148.95,148.9,9.11865613]
[1745699701657,32.99865613,148.95,148.91,9.11865613]
[1745699701860,6.7122,148.94,148.9,9.11865613]
[1745699702157,6.7122,148.94,148.9,15.83205613]
[1745699704359,15.83105613,148.93,148.89,15.83265613]
[1745699707562,15.83065613,148.94,148.89,9.11865613]
[1745699707767,9.11865613,148.94,148.9,9.11865613]
[1745699708063,6.7127,148.93,148.9,9.11865613]
[1745699710463,6.7128,148.92,148.89,15.83265613]
[1745699712059,9.11865613,148.93,148.89,15.83265613]
[1745699713266,6.7131,148.92,148.89,15.83265613]
[1745699713459,9.11865613,148.93,148.89,9.11865613]
[1745699713961,6.7129,148.92,148.89,9.11865613]
[1745699714164,6.7129,148.92,148.89,15.83275613]
[1745699714763,6.7129,148.92,148.89,6.7141]
[1745699714964,6.7129,148.92,148.89,15.83275613]
[1745699721463,9.11865613,148.92,148.88,9.11865613]
[1745699721769,9.11865613,148.91,148.87,9.11865613]
[1745699722564,9.11865613,148.91,148.86,9.11865613]
[1745699723269,6.7141,148.9,148.87,6.7151]
[1745699724066,6.7141,148.9,148.85,23.88]
[1745699724272,6.7142,148.89,148.86,9.11865613]
[1745699724975,15.83255613,148.9,148.86,15.83405613]
[1745699728367,6.7142,148.89,148.86,9.11865613]
[1745699730274,6.7142,148.89,148.86,15.83415613]
[1745699731985,6.7138,148.9,148.86,15.83415613]
[1745699732777,6.7142,148.89,148.86,15.83415613]
[1745699736885,6.7139,148.9,148.87,6.715]
[1745699737476,23.86,148.91,148.87,9.11865613]
[1745699737679,23.86,148.91,148.89,9.11865613]
[1745699737881,32.97865613,148.91,148.86,9.11865613]
[1745699738083,9.11865613,148.9,148.86,9.11865613]
[1745699738377,6.7145,148.89,148.85,32.99865613]
[1745699739281,6.7145,148.89,148.86,6.7154]
[1745699743685,15.83255613,148.9,148.87,6.715]
[1745699743988,15.83255613,148.9,148.85,32.99865613]
[1745699744284,15.83255613,148.9,148.86,6.7153]
[1745699747288,6.7143,148.89,148.86,6.7153]
[1745699747486,6.7143,148.89,148.85,30.5958]
[1745699749790,6.7143,148.89,148.86,6.7154]
[1745699752694,15.83255613,148.9,148.86,6.7154]
[1745699753292,6.7143,148.89,148.86,6.7154]
[1745699753497,6.7143,148.89,148.85,30.5958]
[1745699756695,6.7143,148.89,148.86,6.7155]
[1745699756895,6.7143,148.89,148.86,15.83415613]
[1745699758698,6.7143,148.89,148.86,9.11865613]
[1745699760496,6.7143,148.89,148.85,30.5958]
[1745699760698,6.7143,148.89,148.85,39.71445613]
[1745699761800,6.7143,148.89,148.86,6.7155]
[1745699763304,6.7143,148.89,148.85,39.71445613]
[1745699764302,6.7139,148.9,148.87,9.11865613]
[1745699766003,6.7142,148.89,148.87,9.11865613]
[1745699766496,6.7139,148.9,148.87,9.11865613]
[1745699766894,9.11865613,148.9,148.85,39.71445613]
[1745699767203,9.11865613,148.88,148.85,9.11865613]
[1745699767505,9.11865613,148.88,148.84,9.11865613]
[1745699768002,6.7154,148.87,148.84,9.11865613]
[1745699772010,6.7154,148.87,148.84,15.83505613]
[1745699775107,6.7157,148.86,148.83,15.83545613]
[1745699777216,6.7152,148.87,148.84,15.83495613]
[1745699781111,6.7152,148.87,148.85,9.11865613]
[1745699783017,6.7148,148.88,148.85,9.11865613]
[1745699784820,6.7148,148.88,148.82,23.86]
[1745699785012,32.97865613,148.91,148.87,9.11865613]
[1745699785711,9.11865613,148.9,148.86,9.11865613]
[1745699786211,9.11865613,148.88,148.82,23.86]
[1745699786412,9.11865613,148.87,148.82,32.97865613]
[1745699786717,9.11865613,148.87,148.83,6.7169]
[1745699786916,9.11865613,148.87,148.82,32.97865613]
[1745699787917,6.7156,148.86,148.82,39.69555613]
[1745699790213,6.7156,148.86,148.83,9.11865613]
[1745699790718,6.716,148.85,148.83,9.11865613]
[1745699790913,9.11865613,148.85,148.79,23.86]
[1745699791217,9.11865613,148.85,148.81,9.11865613]
[1745699791417,6.7169,148.83,148.81,9.11865613]
[1745699796112,6.7169,148.83,148.8,6.7181]
[1745699796318,6.7176,148.82,148.79,39.69725613]
[1745699796916,6.7176,148.82,148.75,1.983]
[1745699796917,6.7176,148.82,148.78,6.7189]
[1745699797115,32.97865613,148.83,148.78,9.11865613]
[1745699797818,6.7181,148.81,148.78,9.11865613]
[1745699798419,6.7181,148.81,148.78,15.83755613]
[1745699798619,6.7175,148.82,148.78,9.11865613]
[1745699799421,6.7175,148.82,148.79,9.11865613]
[1745699799624,23.86,148.83,148.8,9.11865613]
[1745699799819,9.11865613,148.85,148.81,9.11865613]
[1745699801424,6.7166,148.84,148.81,15.83615613]
[1745699801623,6.7166,148.84,148.81,6.7175]
[1745699802632,6.7166,148.84,148.8,15.83675613]
[1745699802824,9.11865613,148.83,148.78,9.11865613]
[1745699803124,9.11865613,148.83,148.79,6.7184]
[1745699803926,6.7176,148.82,148.78,15.83765613]
[1745699804219,15.83625613,148.82,148.78,6.719]
[1745699804628,6.7178,148.81,148.78,6.719]
[1745699805227,6.7184,148.8,148.77,9.11865613]
[1745699805524,6.7184,148.8,148.76,32.97865613]
[1745699805925,6.7187,148.79,148.76,39.69845613]
[1745699806726,6.7184,148.8,148.77,15.83805613]
[1745699806926,9.11865613,148.82,148.78,9.11865613]
[1745699807228,6.7185,148.8,148.77,9.11865613]
[1745699808422,6.7185,148.8,148.77,15.83815613]
[1745699810125,2.0459,148.85,148.76,23.86]
[1745699810427,9.11865613,148.85,148.81,9.11865613]
[1745699810618,9.11865613,148.84,148.8,9.11865613]
[1745699810821,6.7169,148.83,148.8,9.11865613]
[1745699811019,9.11865613,148.84,148.8,9.11865613]
[1745699811525,15.83525613,148.84,148.8,15.83665613]
[1745699811829,9.11865613,148.85,148.81,9.11865613]
[1745699812129,15.83495613,148.85,148.81,15.83615613]
[1745699813031,6.7165,148.84,148.81,15.83615613]
[1745699817831,6.7165,148.84,148.81,9.11865613]
[1745699819337,6.7169,148.83,148.81,9.11865613]
[1745699819533,6.7169,148.83,148.8,15.83675613]
[1745699820432,9.11865613,148.83,148.79,15.83725613]
[1745699821637,9.11865613,148.84,148.8,15.83665613]
[1745699822238,15.83545613,148.84,148.8,15.83665613]
[1745699822469,9.11865613,148.84,148.8,15.83665613]
[1745699822936,9.11865613,148.85,148.81,15.83615613]
[1745699823439,9.11865613,148.85,148.81,9.11865613]
[1745699824141,6.7168,148.84,148.8,15.83675613]
[1745699824339,15.83545613,148.84,148.8,15.83675613]
[1745699827946,15.83545613,148.84,148.81,6.7176]
[1745699829648,6.717,148.83,148.8,15.83665613]
[1745699831448,6.7166,148.84,148.81,6.7177]
[1745699831650,9.11865613,148.85,148.81,9.11865613]
[1745699831948,9.11865613,148.84,148.79,9.11865613]
[1745699832851,6.717,148.83,148.8,6.7182]
[1745699839655,6.7173,148.82,148.79,15.83715613]
[1745699839852,9.11865613,148.84,148.79,15.83715613]
[1745699840152,9.11865613,148.84,148.79,9.11865613]
[1745699840455,9.11865613,148.82,148.78,6.719]
[1745699840657,9.11865613,148.82,148.78,15.83765613]
[1745699841456,6.718,148.81,148.79,6.7187]
[1745699843659,6.7175,148.82,148.79,15.83735613]
[1745699843958,9.11865613,148.84,148.8,9.11865613]
[1745699844157,6.7166,148.84,148.81,9.11865613]
[1745699844352,6.7166,148.84,148.81,15.83615613]
[1745699846962,15.83465613,148.85,148.82,6.7172]
[1745699847865,32.97865613,148.86,148.83,6.7168]
[1745699848062,9.11865613,148.87,148.83,9.11865613]
[1745699849258,15.83395613,148.87,148.84,6.7164]
[1745699849865,15.83395613,148.87,148.83,15.83535613]
[1745699850464,15.83395613,148.87,148.83,6.7167]
[1745699853867,6.7155,148.86,148.83,6.7167]
[1745699854170,6.7155,148.86,148.82,15.83585613]
[1745699854363,9.11865613,148.87,148.82,15.83585613]
[1745699854667,9.11865613,148.86,148.82,15.83585613]
[1745699855268,15.83445613,148.86,148.82,15.83585613]
[1745699858567,6.7162,148.85,148.82,15.83585613]
[1745699860969,6.7162,148.85,148.8,2.0956]
[1745699860970,9.11865613,148.84,148.8,11.21425613]
[1745699861271,9.11865613,148.84,148.8,9.11865613]
[1745699862275,15.83515613,148.84,148.81,6.7177]
[1745699864071,15.83515613,148.84,148.81,15.83635613]
[1745699864376,6.7165,148.84,148.82,9.11865613]
[1745699867878,6.7162,148.85,148.82,15.83595613]
[1745699870781,6.7162,148.85,148.82,6.7173]
[1745699873880,6.7162,148.85,148.81,15.83625613]
[1745699874080,6.7165,148.84,148.81,15.83625613]
[1745699875681,6.7165,148.84,148.81,6.7176]
[1745699876381,6.7171,148.83,148.8,15.83665613]
[1745699879287,6.7175,148.82,148.8,9.11865613]
[1745699879684,6.7175,148.82,148.79,39.69725613]
[1745699880086,6.7178,148.81,148.79,23.86]
[1745699880685,15.83625613,148.82,148.79,30.5786]
[1745699880885,6.7176,148.82,148.79,32.97865613]
[1745699882386,6.7176,148.82,148.8,6.7182]
[1745699885189,6.7176,148.82,148.79,39.69715613]
[1745699887191,6.7179,148.81,148.79,23.86]
[1745699887395,6.7179,148.81,148.78,15.83765613]
[1745699888293,15.83615613,148.82,148.79,6.7186]
[1745699892590,23.84,148.87,148.8,9.11865613]
[1745699892591,6.7168,148.84,148.8,9.11865613]
[1745699892793,1.9034,148.89,148.83,9.11865613]
[1745699892990,37.25271613,148.9,148.86,9.11865613]
[1745699893191,6.7145,148.89,148.86,9.11865613]
[1745699895795,43.96651613,148.9,148.86,15.83415613]
[1745699898492,24.24916,148.9,148.86,9.11865613]
[1745699899499,40.08161613,148.9,148.87,6.715]
[1745699899896,40.08161613,148.9,148.86,9.11865613]
[1745699900398,40.08161613,148.9,148.86,15.83395613]
[1745699901900,39.67245613,148.9,148.86,15.83395613]
[1745699902616,6.7142,148.89,148.86,15.83395613]
[1745699903302,6.7142,148.89,148.86,6.7153]
[1745699903612,9.11865613,148.88,148.83,32.95865613]
[1745699903799,9.11865613,148.85,148.83,23.84]
[1745699903999,15.83445613,148.86,148.82,6.717]
[1745699904201,15.83445613,148.86,148.82,15.83565613]
[1745699904400,15.83445613,148.86,148.82,9.11865613]
[1745699905409,15.83445613,148.86,148.83,6.7169]
[1745699905905,6.7158,148.86,148.83,15.83555613]
[1745699907507,6.7149,148.88,148.85,15.83435613]
[1745699908508,15.83355613,148.88,148.85,6.7157]
[1745699908910,9.11865613,148.87,148.85,6.7157]
[1745699909104,9.11865613,148.87,148.84,6.7163]
[1745699909408,15.83375613,148.87,148.84,6.7163]
[1745699914811,6.7151,148.87,148.84,15.83495613]
[1745699915415,9.11865613,148.88,148.85,6.7159]
[1745699915715,9.11865613,148.88,148.84,9.11865613]
[1745699916114,6.7151,148.87,148.84,15.83485613]
[1745699916714,6.7151,148.87,148.85,6.7159]
[1745699917910,6.7151,148.87,148.84,15.83485613]
[1745699920914,6.7148,148.88,148.85,15.83455613]
[1745699924626,6.7148,148.88,148.85,6.7159]
[1745699926326,15.83345613,148.88,148.85,6.7159]
[1745699926528,9.11865613,148.88,148.83,9.11865613]
[1745699928230,6.7152,148.87,148.84,6.7164]
[1745699933426,15.83385613,148.87,148.84,6.7164]
[1745699934931,9.11865613,148.87,148.83,15.83535613]
[1745699935332,9.11865613,148.87,148.83,9.11865613]
[1745699936235,15.83395613,148.87,148.84,6.7164]
[1745699941435,9.11865613,148.87,148.84,6.7164]
[1745699941636,32.95865613,148.9,148.85,9.11865613]
[1745699942245,6.7144,148.89,148.86,6.7152]
[1745699942842,15.83305613,148.89,148.86,6.7152]
[1745699945140,15.83335613,148.88,148.85,6.7158]
[1745699946243,15.83335613,148.88,148.84,39.65485613]
[1745699947643,15.83335613,148.88,148.84,15.83485613]
[1745699948543,9.11865613,148.87,148.84,6.7162]
[1745699950545,15.83385613,148.87,148.84,6.7162]
[1745699958857,15.83385613,148.87,148.85,6.7159]
[1745699959052,9.11865613,148.87,148.85,6.7159]
[1745699959955,15.83345613,148.88,148.85,6.7159]
[1745699964362,9.11865613,148.87,148.84,6.7163]
[1745699965464,15.83385613,148.87,148.84,6.7163]
[1745699969260,15.83385613,148.87,148.85,6.7159]
[1745699969566,15.83385613,148.87,148.82,32.93865613]
[1745699969867,15.83385613,148.87,148.84,6.7161]
[1745699971166,15.83385613,148.87,148.85,6.7159]
[1745699972262,15.83385613,148.87,148.82,32.93865613]
[1745699972467,15.83385613,148.87,148.84,6.7162]
[1745699974671,15.83385613,148.87,148.85,6.716]
[1745699974868,9.11865613,148.87,148.85,6.716]
[1745699977972,9.11865613,148.87,148.82,23.82]
[1745699978265,9.11865613,148.85,148.82,23.82]
[1745699979273,15.83475613,148.85,148.82,30.5372]
[1745699979874,9.11865613,148.85,148.83,6.7168]
[1745699989975,9.11865613,148.85,148.84,6.7164]
[1745699990179,9.11865613,148.86,148.82,32.93865613]
[1745699990679,9.11865613,148.86,148.84,6.7161]
[1745699991681,6.7148,148.88,148.85,6.7157]
[1745699991878,9.11865613,148.88,148.83,9.11865613]
[1745699992180,9.11865613,148.88,148.84,9.11865613]
[1745699992679,9.11865613,148.87,148.83,9.11865613]
[1745699993381,15.83375613,148.87,148.84,6.716]
[1745699994583,9.11865613,148.86,148.84,6.716]
[1745699998178,9.11865613,148.86,148.85,6.716]
[1745700010794,9.11865613,148.87,148.86,6.7155]
[1745700011997,9.11865613,148.88,148.86,6.7155]
[1745700012698,9.11865613,148.88,148.87,6.7151]
[1745700013397,9.11865613,148.88,148.86,6.7153]
[1745700013595,9.11865613,148.89,148.85,9.11865613]
[1745700013899,9.11865613,148.91,148.87,9.11865613]
[1745700014097,15.83215613,148.91,148.88,6.7144]
[1745700014296,15.83215613,148.91,148.86,9.11865613]
[1745700014496,9.11865613,148.9,148.88,6.7144]
[1745700014700,9.11865613,148.89,148.88,6.7144]
[1745700015395,9.11865613,148.89,148.85,9.11865613]
[1745700015696,9.11865613,148.88,148.83,11.10615613]
[1745700016598,9.11865613,148.87,148.82,32.93865613]
[1745700016799,9.11865613,148.86,148.82,32.93865613]
[1745700017099,9.11865613,148.85,148.82,23.82]
[1745700017497,9.11865613,148.85,148.83,6.7166]
[1745700022312,15.83485613,148.85,148.82,30.5373]
[1745700028204,15.83485613,148.85,148.83,6.7168]
[1745700029500,9.11865613,148.85,148.83,6.7168]
[1745700031904,15.83465613,148.85,148.82,30.5371]
[1745700034003,9.11865613,148.85,148.83,6.7168]
[1745700034203,9.11865613,148.87,148.84,9.11865613]
[1745700034509,9.11865613,148.87,148.83,9.11865613]
[1745700035307,15.83395613,148.87,148.84,6.7162]
[1745700039212,9.11865613,148.87,148.85,6.7158]
[1745700048419,9.11865613,148.87,148.86,6.7155]
[1745700048815,9.11865613,148.88,148.83,9.11865613]
[1745700049016,9.11865613,148.88,148.86,6.7151]
[1745700049821,9.11865613,148.88,148.87,6.7151]
[1745700050022,9.11865613,148.89,148.87,6.7151]
[1745700054321,15.83285613,148.89,148.87,6.7151]
[1745700054521,9.11865613,148.88,148.86,6.7153]
[1745700069930,9.11865613,148.89,148.85,9.11865613]
[1745700070438,9.11865613,148.89,148.88,6.7146]
[1745700070640,15.83245613,148.9,148.88,6.7146]
[1745700070835,9.11865613,148.9,148.88,6.7146]
[1745700071236,9.11865613,148.91,148.87,9.11865613]
[1745700071842,43.57145613,148.92,148.89,6.7138]
[1745700072335,6.7133,148.91,148.89,6.7138]
[1745700074541,15.83195613,148.91,148.89,6.7138]
[1745700074843,9.11865613,148.91,148.89,6.7138]
[1745700075043,43.57105613,148.92,148.89,6.7138]
[1745700076346,19.77105613,148.92,148.89,6.7138]
[1745700078539,9.11865613,148.91,148.89,6.7138]
[1745700079542,9.11865613,148.9,148.89,6.7138]
[1745700079846,15.83235613,148.9,148.86,9.11865613]
[1745700080048,9.11865613,148.89,148.85,9.11865613]
[1745700080346,9.11865613,148.88,148.84,32.89865613]
[1745700080549,9.11865613,148.88,148.86,6.7152]
[1745700084344,6.7142,148.89,148.86,6.7152]
[1745700084546,15.83285613,148.89,148.86,6.7152]
[1745700091655,15.83285613,148.89,148.85,9.11865613]
[1745700092659,9.11865613,148.89,148.87,6.7151]
[1745700094159,15.83255613,148.9,148.87,6.7151]
[1745700097166,9.11865613,148.89,148.87,6.7151]
[1745700110069,15.83295613,148.89,148.86,6.7153]
[1745700110269,9.11865613,148.88,148.86,6.7153]
[1745700110469,9.11865613,148.88,148.84,32.89865613]
[1745700110768,9.11865613,148.87,148.85,6.7157]
[1745700111070,9.11865613,148.86,148.81,85.392]
[1745700111265,9.11865613,148.85,148.81,94.51065613]
[1745700111769,9.11865613,148.85,148.82,6.7169]
[1745700112269,9.11865613,148.86,148.82,9.11865613]
[1745700112769,9.11865613,148.86,148.84,6.7161]
[1745700113071,23.76,148.88,148.83,9.11865613]
[1745700113270,9.11865613,148.87,148.84,6.7163]
[1745700115671,15.83375613,148.87,148.84,6.7163]
[1745700115872,9.11865613,148.87,148.84,6.7163]
[1745700116474,9.11865613,148.87,148.85,6.7159]
[1745700119374,9.11865613,148.87,148.83,9.11865613]
[1745700121275,9.11865613,148.87,148.85,6.7157]
[1745700124580,15.83375613,148.87,148.84,6.7162]
[1745700126289,9.11865613,148.87,148.85,6.7159]
[1745700128196,15.83375613,148.87,148.85,6.7159]
[1745700128591,9.11865613,148.87,148.85,6.7159]
[1745700129589,15.83295613,148.89,148.84,9.11865613]
[1745700129793,15.83295613,148.89,148.85,9.11865613]
[1745700129993,6.7143,148.89,148.85,9.11865613]
[1745700130496,6.7143,148.89,148.86,6.7151]
[1745700131095,15.83255613,148.9,148.86,6.7151]
[1745700131496,15.83255613,148.9,148.87,6.715]
[1745700133391,9.11865613,148.89,148.86,6.7154]
[1745700133599,9.11865613,148.88,148.86,6.7154]
[1745700133899,9.11865613,148.87,148.85,6.7159]
[1745700135198,6.7149,148.88,148.85,6.7159]
[1745700135400,9.11865613,148.87,148.85,6.7159]
[1745700151617,15.83355613,148.88,148.85,6.7159]
[1745700155020,9.11865613,148.88,148.86,6.7153]
[1745700163933,15.83335613,148.88,148.85,6.7158]
[1745700175842,9.11865613,148.87,148.85,6.7158]
[1745700176041,15.83375613,148.87,148.85,6.7158]
[1745700176845,9.11865613,148.87,148.85,6.7158]
[1745700177244,15.83345613,148.88,148.85,6.7158]
[1745700178347,15.83305613,148.89,148.86,6.7155]
[1745700181342,9.11865613,148.89,148.86,6.7155]
[1745700181547,6.7146,148.88,148.86,6.7155]
[1745700181848,6.7146,148.88,148.85,6.7158]
[1745700182047,6.7146,148.88,148.85,15.83445613]
[1745700198957,1.9712,148.92,148.87,9.11865613]
[1745700199153,9.11865613,148.94,148.9,9.11865613]
[1745700199455,39.57025613,148.95,148.91,6.7132]
[1745700199757,39.57025613,148.95,148.91,15.83185613]
[1745700200053,39.57025613,148.95,148.91,9.11865613]
[1745700200558,39.57025613,148.95,148.91,15.83185613]
[1745700200854,6.712,148.94,148.91,15.83185613]
[1745700202161,39.57025613,148.95,148.91,15.83185613]
[1745700203359,30.4516,148.95,148.92,6.7128]
[1745700204957,23.74,148.95,148.92,15.83145613]
[1745700205258,10.7693,148.96,148.92,9.11865613]
[1745700205660,10.7693,148.96,148.92,15.83125613]
[1745700206258,6.7115,148.95,148.92,15.83125613]
[1745700210972,9.11865613,148.94,148.89,9.11865613]
[1745700211165,9.11865613,148.9,148.87,23.74]
[1745700211560,15.83235613,148.9,148.87,30.4549]
[1745700211756,9.11865613,148.88,148.84,25.6593]
[1745700211962,9.11865613,148.87,148.84,23.74]
[1745700213266,9.11865613,148.87,148.85,6.7157]
[1745700215766,15.83355613,148.88,148.85,6.7157]
[1745700219368,9.11865613,148.87,148.85,6.7157]
[1745700220770,9.11865613,148.88,148.86,6.7155]
[1745700220969,23.74,148.9,148.85,9.11865613]
[1745700221170,32.85865613,148.9,148.86,9.11865613]
[1745700221468,39.57255613,148.9,148.87,6.715]
[1745700221668,23.74,148.9,148.86,9.11865613]
[1745700223074,30.454,148.9,148.87,6.7148]
[1745700223367,9.11865613,148.89,148.87,6.7148]
[1745700223572,39.57265613,148.9,148.87,6.7148]
[1745700226774,6.7142,148.89,148.86,15.83405613]
[1745700226969,6.7142,148.89,148.86,6.7154]
[1745700228074,39.57255613,148.9,148.86,6.7154]
[1745700228876,6.7142,148.89,148.86,6.7154]
[1745700231274,39.57255613,148.9,148.87,6.715]
[1745700231471,39.57255613,148.9,148.85,9.11865613]
[1745700231472,32.85865613,148.9,148.85,9.11865613]
[1745700231775,9.11865613,148.87,148.85,6.7156]
[1745700240395,9.11865613,148.87,148.83,9.11865613]
[1745700240683,23.74,148.9,148.82,32.83865613]
[1745700240684,9.11865613,148.86,148.82,32.83865613]
[1745700240876,15.83405613,148.87,148.84,6.7164]
[1745700243887,6.7155,148.86,148.84,6.7164]
[1745700244088,6.7155,148.86,148.83,6.7168]
[1745700244490,15.83395613,148.87,148.82,32.83865613]
[1745700245388,15.83395613,148.87,148.84,6.7164]
[1745700251388,9.11865613,148.87,148.85,6.7159]
[1745700251595,15.83345613,148.88,148.85,6.7159]
[1745700251793,9.11865613,148.87,148.85,6.7159]
[1745700251991,6.7148,148.88,148.85,6.7159]
[1745700252190,9.11865613,148.87,148.85,6.7159]
[1745700258707,15.83345613,148.88,148.85,6.7159]
[1745700260707,6.7152,148.87,148.84,6.7163]
[1745700265705,9.11865613,148.88,148.82,23.72]
[1745700265905,9.11865613,148.85,148.81,61.632]
[1745700266301,9.11865613,148.84,148.81,61.632]
[1745700266507,9.11865613,148.83,148.81,61.632]
[1745700266708,9.11865613,148.82,148.81,61.632]
[1745700267606,15.83595613,148.82,148.81,61.632]
[1745700281020,39.57595613,148.82,148.81,61.632]
[1745700291631,6.7191,148.79,148.76,9.11865613]
[1745700292227,6.7191,148.79,148.76,15.83865613]
[1745700294331,6.7191,148.79,148.76,9.11865613]
[1745700296428,6.7191,148.79,148.76,15.83865613]
[1745700298836,15.83705613,148.8,148.76,9.11865613]
[1745700299038,9.11865613,148.81,148.77,9.11865613]
[1745700299840,6.7183,148.8,148.77,15.83795613]
[1745700301640,15.83655613,148.81,148.77,15.83795613]
[1745700301832,15.83655613,148.81,148.77,6.7193]
[1745700304241,6.7183,148.8,148.77,6.7193]
[1745700305535,6.7183,148.8,148.76,15.83845613]
[1745700306642,15.83695613,148.8,148.76,6.7198]
[1745700307036,6.7188,148.79,148.76,6.7198]
[1745700307343,9.11865613,148.77,148.74,2.0124]
[1745700307540,15.83915613,148.76,148.73,23.72]
[1745700308644,15.83915613,148.76,148.73,30.4413]
[1745700309548,15.83925613,148.75,148.73,23.72]
[1745700309749,9.11865613,148.74,148.73,23.72]
[1745700309948,9.11865613,148.75,148.71,9.11865613]
[1745700310143,15.83945613,148.75,148.72,6.7216]
[1745700312653,15.83885613,148.76,148.73,6.7213]
[1745700312852,9.11865613,148.76,148.72,9.11865613]
[1745700313356,9.11865613,148.76,148.73,6.7211]
[1745700314455,9.11865613,148.76,148.74,6.7209]
[1745700314858,23.74,148.78,148.74,9.11865613]
[1745700315157,32.85865613,148.78,148.74,9.11865613]
[1745700315456,39.57805613,148.78,148.75,6.7202]
[1745700315751,9.11865613,148.76,148.72,9.11865613]
[1745700316054,9.11865613,148.74,148.7,32.85865613]
[1745700316452,15.83985613,148.74,148.71,6.722]
[1745700317354,15.83935613,148.75,148.72,6.7217]
[1745700319360,9.11865613,148.74,148.72,6.7217]
[1745700320062,15.83955613,148.74,148.71,6.7221]
[1745700320761,9.11865613,148.74,148.72,6.7218]
[1745700321562,15.83925613,148.75,148.72,6.7218]
[1745700322864,15.83965613,148.74,148.71,6.7221]
[1745700323060,9.11865613,148.73,148.71,6.7221]
[1745700329365,15.83965613,148.74,148.71,6.7221]
[1745700332664,15.83965613,148.74,148.7,23.74]
[1745700332870,9.11865613,148.74,148.72,6.7218]
[1745700333675,9.11865613,148.75,148.73,6.7213]
[1745700337372,9.11865613,148.76,148.74,6.7209]
[1745700337671,15.83845613,148.77,148.74,6.7209]
[1745700337871,9.11865613,148.76,148.74,6.7209]
[1745700339573,15.83875613,148.76,148.73,6.7212]
[1745700341870,9.11865613,148.76,148.72,9.11865613]
[1745700342077,23.74,148.78,148.74,9.11865613]
[1745700342341,493.01865613,148.82,148.77,9.11865613]
[1745700342487,6.7176,148.82,148.78,9.11865613]
[1745700343271,15.83625613,148.82,148.78,9.11865613]
[1745700343474,15.83625613,148.82,148.78,15.83755613]
[1745700344569,15.83625613,148.82,148.78,9.11865613]
[1745700344773,15.83625613,148.82,148.79,6.7186]
[1745700345277,23.74,148.83,148.81,6.7178]
[1745700347479,23.74,148.83,148.82,6.7173]
[1745700347978,9.11865613,148.85,148.82,6.7173]
[1745700349178,9.11865613,148.84,148.82,6.7173]
[1745700350079,9.11865613,148.84,148.81,6.7177]
[1745700356784,9.11865613,148.84,148.82,6.7172]
[1745700359793,9.11865613,148.84,148.81,6.7176]
[1745700362093,9.11865613,148.84,148.82,6.7172]
[1745700362297,9.11865613,148.84,148.8,9.11865613]
[1745700362591,9.11865613,148.84,148.82,6.7169]
[1745700362830,9.11865613,148.85,148.81,9.11865613]
[1745700363599,9.11865613,148.85,148.82,6.717]
[1745700363896,9.11865613,148.85,148.81,9.11865613]
[1745700364100,32.83865613,148.86,148.83,6.7166]
[1745700365500,9.11865613,148.85,148.82,6.7172]
[1745700366100,9.11865613,148.85,148.81,9.11865613]
[1745700366900,9.11865613,148.85,148.82,6.7169]
[1745700367599,9.11865613,148.85,148.83,6.7167]
[1745700368497,9.11865613,148.85,148.81,9.11865613]
[1745700368703,9.11865613,148.85,148.82,6.7171]
[1745700370401,9.11865613,148.85,148.83,6.7168]
[1745700370605,39.55435613,148.86,148.83,6.7168]
[1745700370906,32.83865613,148.86,148.83,6.7168]
[1745700371803,39.55415613,148.86,148.83,6.7168]
[1745700372003,32.83865613,148.86,148.83,6.7168]
[1745700372507,23.72,148.86,148.84,6.7164]
[1745700373709,15.83345613,148.88,148.85,6.7159]
[1745700373911,6.7148,148.88,148.85,6.7159]
[1745700375913,39.53305613,148.89,148.86,6.7155]
[1745700376711,32.81865613,148.89,148.86,6.7155]
[1745700377010,32.81865613,148.89,148.87,6.715]
[1745700377214,23.7,148.89,148.87,6.715]
[1745700377509,32.81865613,148.89,148.82,23.7]
[1745700377715,32.81865613,148.89,148.84,9.11865613]
[1745700378315,6.7147,148.88,148.85,6.7159]
[1745700381015,39.53305613,148.89,148.85,6.7159]
[1745700382637,39.53305613,148.89,148.86,6.7155]
[1745700384121,32.81865613,148.89,148.86,6.7155]
[1745700384620,23.7,148.89,148.87,6.715]
[1745700385620,23.7,148.89,148.86,15.83405613]
[1745700386321,23.7,148.89,148.87,6.715]
[1745700386922,30.4143,148.89,148.86,15.83405613]
[1745700387122,30.4143,148.89,148.86,6.7154]